bitfinex/quotes_SOLUSD_20241229
["timestamp","ask_amount","ask_price","bid_price","bid_amount"]
[1735506343791,23.776884,192.75,192.68,20.0]
[1735506344407,23.776884,192.75,192.67,1.6421]
[1735506345401,23.776884,192.75,192.69,20.0]
[1735506345999,4.92821702,192.82,192.69,20.0]
[1735506346200,5.78489791,192.8,192.69,20.0]
[1735506346406,5.78489791,192.8,192.71,20.0]
[1735506347809,23.776884,192.79,192.71,20.0]
[1735506351179,23.776884,192.79,192.72,3.67864934]
[1735506351386,23.776884,192.77,192.72,3.67864934]
[1735506351688,23.776884,192.77,192.71,20.0]
[1735506352907,23.776884,192.77,192.75,20.0]
[1735506353610,23.776884,192.77,192.71,20.0]
[1735506354609,23.776884,192.77,192.72,3.6851488]
[1735506355489,23.776884,192.77,192.73,3.6851488]
[1735506355913,23.776884,192.77,192.71,20.0]
[1735506356412,23.776884,192.77,192.72,3.68632863]
[1735506357005,23.776884,192.77,192.71,20.0]
[1735506358215,23.776884,192.77,192.72,3.68618892]
[1735506358990,23.776884,192.77,192.73,3.68618892]
[1735506359618,23.776884,192.77,192.71,20.0]
[1735506360311,23.776884,192.77,192.72,3.68668141]
[1735506360900,10.71311493,192.77,192.67,9.85777937]
[1735506361209,23.776884,192.75,192.63,14.56007937]
[1735506361401,23.776884,192.73,192.66,20.0]
[1735506363506,13.48082853,192.8,192.66,20.0]
[1735506363815,23.776884,192.79,192.67,3.68601855]
[1735506364396,23.776884,192.79,192.68,3.68601855]
[1735506365015,23.776884,192.79,192.66,20.0]
[1735506365720,23.776884,192.77,192.67,3.68479633]
[1735506365920,23.776884,192.77,192.7,20.0]
[1735506366300,23.776884,192.79,192.7,20.0]
[1735506366512,5.79122853,192.77,192.7,20.0]
[1735506366702,5.79122853,192.77,192.66,20.0]
[1735506368124,5.79122853,192.77,192.67,3.68793389]
[1735506368614,5.79122853,192.77,192.66,20.0]
[1735506369823,5.79122853,192.77,192.67,3.68619221]
[1735506370236,5.79122853,192.77,192.68,3.68619221]
[1735506370823,5.79122853,192.77,192.66,20.0]
[1735506371627,5.79122853,192.77,192.67,3.68498202]
[1735506372124,5.79122853,192.77,192.66,20.0]
[1735506374920,5.79122853,192.77,192.67,3.68290978]
[1735506375126,5.79122853,192.77,192.7,20.0]
[1735506375908,23.776884,192.76,192.68,1.5613]
[1735506376511,23.776884,192.76,192.69,2.65213423]
[1735506377325,23.776884,192.76,192.68,1.5613]
[1735506380433,23.776884,192.76,192.71,20.0]
[1735506381116,23.776884,192.76,192.68,1.5613]
[1735506382552,23.776884,192.76,192.71,20.0]
[1735506383225,23.776884,192.76,192.68,1.5613]
[1735506384323,12.32956942,192.8,192.63,7.9057]
[1735506384324,23.776884,192.74,192.63,7.9057]
[1735506384836,23.776884,192.74,192.66,20.0]
[1735506385429,23.776884,192.74,192.63,1.5613]
[1735506385636,23.776884,192.72,192.63,1.5613]
[1735506387434,5.79122853,192.74,192.63,1.5613]
[1735506387629,23.776884,192.7,192.63,1.5613]
[1735506388715,23.776884,192.7,192.62,20.0]
[1735506391126,7.6896,192.73,192.62,20.0]
[1735506391127,23.776884,192.72,192.62,20.0]
[1735506391328,4.51211479,192.7,192.62,20.0]
[1735506393622,4.51211479,192.7,192.59,6.3444]
[1735506393939,6.43545075,192.69,192.55,8.21567937]
[1735506394242,4.51211479,192.68,192.58,20.0]
[1735506394439,23.776884,192.67,192.58,20.0]
[1735506394942,23.776884,192.67,192.54,6.5686]
[1735506395324,4.51211479,192.67,192.57,20.0]
[1735506395641,10.94756554,192.67,192.57,20.0]
[1735506397314,10.94756554,192.67,192.59,20.0]
[1735506397629,7.6896,192.73,192.6,20.0]
[1735506397630,14.39200903,192.73,192.6,20.0]
[1735506397829,23.776884,192.72,192.61,20.0]
[1735506398130,30.47929303,192.72,192.61,20.0]
[1735506398332,36.91474378,192.72,192.61,20.0]
[1735506398540,36.91474378,192.72,192.58,1.5239]
[1735506398541,36.91474378,192.72,192.6,20.0]
[1735506398841,30.21233475,192.72,192.6,20.0]
[1735506399033,23.776884,192.7,192.59,20.0]
[1735506399749,23.776884,192.7,192.58,21.5239]
[1735506399926,30.47929303,192.7,192.58,21.5239]
[1735506400546,30.47929303,192.7,192.59,20.0]
[1735506404650,30.47929303,192.7,192.58,1.5239]
[1735506406642,33.08747764,192.7,192.58,1.5239]
[1735506406847,36.91474378,192.7,192.59,20.0]
[1735506407034,36.91474378,192.7,192.6,20.0]
[1735506407229,30.47929303,192.7,192.6,20.0]
[1735506407434,30.47929303,192.7,192.65,20.0]
[1735506420556,6.43545075,192.76,192.65,21.6654]
[1735506420752,6.70240903,192.75,192.65,21.6654]
[1735506421154,23.776884,192.74,192.65,21.6654]
[1735506421461,23.776884,192.72,192.65,21.6654]
[1735506421642,26.38506861,192.72,192.65,21.6654]
[1735506421842,23.776884,192.7,192.65,21.6654]
[1735506422852,6.70240903,192.71,192.65,21.6654]
[1735506423043,6.70240903,192.77,192.67,20.0]
[1735506423250,6.70240903,192.77,192.68,20.0]
[1735506423446,6.70240903,192.77,192.68,23.84377266]
[1735506424059,6.70240903,192.77,192.69,3.84377266]
[1735506424265,23.776884,192.76,192.69,3.84377266]
[1735506424644,23.776884,192.76,192.68,20.0]
[1735506425471,23.776884,192.76,192.67,20.0]
[1735506425869,23.776884,192.76,192.68,3.84380672]
[1735506426567,23.776884,192.76,192.67,20.0]
[1735506427771,23.776884,192.76,192.68,3.84445839]
[1735506428274,23.776884,192.76,192.69,3.84445839]
[1735506429062,23.776884,192.76,192.67,20.0]
[1735506430878,23.776884,192.76,192.65,32.04029115]
[1735506431269,23.776884,192.76,192.66,0.77824493]
[1735506431794,23.776884,192.76,192.69,20.0]
[1735506433897,23.776884,192.76,192.71,20.0]
[1735506436492,23.776884,192.76,192.72,20.0]
[1735506436791,23.776884,192.76,192.72,21.6549]
[1735506446023,13.13785978,192.81,192.72,21.6549]
[1735506446409,23.776884,192.8,192.72,21.6549]
[1735506449700,23.776884,192.78,192.72,21.6549]
[1735506450702,13.13785978,192.78,192.67,1.5677]
[1735506451001,23.776884,192.82,192.67,21.5677]
[1735506451002,23.776884,192.76,192.67,21.5677]
[1735506451517,23.776884,192.76,192.69,20.0]
[1735506453223,23.776884,192.76,192.67,1.5677]
[1735506453409,23.776884,192.76,192.67,21.5677]
[1735506456503,23.776884,192.82,192.67,21.5677]
[1735506456807,23.776884,192.82,192.68,20.0]
[1735506457537,23.776884,192.8,192.67,21.5677]
[1735506457917,23.776884,192.78,192.67,21.5677]
[1735506459123,3.88098748,192.79,192.7,20.0]
[1735506459503,23.776884,192.78,192.7,20.0]
[1735506460130,23.776884,192.78,192.68,10.37489115]
[1735506460709,5.37397831,192.81,192.74,20.0]
[1735506461018,5.37397831,192.81,192.74,21.5677]
[1735506461326,23.776884,192.8,192.74,21.5677]
[1735506461534,5.37397831,192.81,192.76,20.0]
[1735506462229,23.776884,192.8,192.76,20.0]
[1735506462606,3.88098748,192.85,192.76,20.0]
[1735506462806,23.776884,192.84,192.76,20.0]
[1735506465340,3.88098748,192.85,192.76,20.0]
[1735506465711,23.776884,192.84,192.76,20.0]
[1735506465912,23.776884,192.87,192.76,20.0]
[1735506466118,23.776884,192.82,192.76,20.0]
[1735506466318,3.88098748,192.82,192.76,20.0]
[1735506466519,9.25496579,192.82,192.76,20.0]
[1735506468038,23.776884,192.87,192.76,20.0]
[1735506468211,23.776884,192.85,192.76,20.0]
[1735506469532,5.37397831,192.86,192.76,26.2348]
[1735506469742,5.37397831,192.86,192.76,36.60969115]
[1735506470438,23.776884,192.85,192.76,36.60969115]
[1735506470839,23.776884,192.85,192.76,26.2348]
[1735506471641,23.776884,192.85,192.76,36.60969115]
[1735506476619,23.776884,192.85,192.8,20.0]
[1735506484245,6.43545075,192.87,192.81,20.0]
[1735506484541,6.43545075,192.87,192.81,21.6002]
[1735506484542,23.776884,192.86,192.81,21.6002]
[1735506484751,23.776884,192.86,192.81,1.6002]
[1735506485756,23.776884,192.9,192.81,1.6002]
[1735506485940,26.38506861,192.9,192.81,1.6002]
[1735506486142,23.776884,192.88,192.81,1.6002]
[1735506486653,5.37397831,192.89,192.82,20.0]
[1735506487157,23.776884,192.88,192.81,1.6002]
[1735506488226,6.43545075,192.9,192.8,20.0]
[1735506488650,23.776884,192.88,192.8,20.0]
[1735506488948,25.10531472,192.88,192.8,20.0]
[1735506490753,25.10531472,192.88,192.81,20.0]
[1735506491352,25.10531472,192.88,192.8,20.0]
[1735506491969,25.10531472,192.88,192.79,20.0]
[1735506492130,23.776884,192.86,192.76,1.6002]
[1735506492338,23.776884,192.84,192.72,6.0211]
[1735506492572,23.776884,192.84,192.75,20.0]
[1735506492857,23.776884,192.82,192.75,20.0]
[1735506496247,7.76388147,192.81,192.71,1.511]
[1735506496438,23.776884,192.8,192.71,1.511]
[1735506496860,23.776884,192.8,192.71,21.511]
[1735506497663,23.776884,192.8,192.71,1.511]
[1735506498641,23.776884,192.84,192.71,1.511]
[1735506499452,5.16264788,192.83,192.71,1.511]
[1735506501645,5.16264788,192.83,192.71,21.511]
[1735506502678,5.16264788,192.83,192.72,20.0]
[1735506503261,5.16264788,192.83,192.71,1.511]
[1735506503855,5.16264788,192.83,192.71,11.88589115]
[1735506505460,5.16264788,192.83,192.75,20.0]
[1735506505641,11.61464788,192.89,192.77,20.0]
[1735506505844,5.37397831,192.88,192.77,20.0]
[1735506506654,5.37397831,192.88,192.78,1.511]
[1735506506971,23.776884,192.87,192.78,1.511]
[1735506509375,23.776884,192.88,192.78,1.511]
[1735506509574,5.16264788,192.87,192.78,1.511]
[1735506511176,11.73244788,192.87,192.74,7.6949]
[1735506511381,6.5698,192.87,192.74,7.6949]
[1735506511545,23.776884,192.85,192.77,20.0]
[1735506511747,28.93953188,192.85,192.77,20.0]
[1735506512689,28.93953188,192.85,192.77,18.5]
[1735506516974,28.93953188,192.85,192.74,21.5608]
[1735506521681,28.93953188,192.85,192.74,1.5608]
[1735506527575,23.776884,192.83,192.74,21.5608]
[1735506530185,6.5698,192.87,192.7,1.5658]
[1735506530186,23.776884,192.86,192.7,1.5658]
[1735506530487,23.776884,192.81,192.7,1.5658]
[1735506531161,23.776884,192.81,192.72,20.0]
[1735506532263,23.776884,192.81,192.73,20.0]
[1735506533663,23.776884,192.81,192.72,20.0]
[1735506534386,23.776884,192.81,192.73,20.0]
[1735506537167,23.776884,192.81,192.72,20.0]
[1735506537367,23.776884,192.81,192.73,20.0]
[1735506538892,23.776884,192.83,192.7,1.5658]
[1735506539090,23.776884,192.79,192.7,1.5658]
[1735506539389,23.776884,192.77,192.72,20.0]
[1735506540485,23.776884,192.77,192.7,1.5658]
[1735506541166,23.776884,192.77,192.7,21.5658]
[1735506547278,23.776884,192.77,192.66,9.76697937]
[1735506547492,26.91087115,192.77,192.66,9.76697937]
[1735506547716,23.776884,192.75,192.69,20.0]
[1735506548404,23.776884,192.75,192.68,20.0]
[1735506548900,23.776884,192.75,192.66,1.5513]
[1735506549196,23.776884,192.73,192.66,20.0]
[1735506549402,23.776884,192.73,192.63,8.21567937]
[1735506549705,34.31351019,192.73,192.63,8.21567937]
[1735506549885,23.776884,192.71,192.63,8.21567937]
[1735506550083,23.776884,192.71,192.63,20.0]
[1735506550278,28.93953188,192.71,192.63,20.0]
[1735506550480,28.93953188,192.71,192.61,1.5513]
[1735506551501,28.93953188,192.71,192.63,20.0]
[1735506552411,23.776884,192.73,192.63,20.0]
[1735506552706,5.16264788,192.71,192.63,20.0]
[1735506552904,5.16264788,192.71,192.61,1.5513]
[1735506554311,5.16264788,192.71,192.61,21.5513]
[1735506555191,5.16264788,192.71,192.61,1.5513]
[1735506555385,5.16264788,192.71,192.62,20.0]
[1735506555994,5.16264788,192.71,192.61,21.5513]
[1735506557086,5.16264788,192.71,192.61,1.5513]
[1735506559211,28.93953188,192.71,192.61,1.5513]
[1735506559398,23.776884,192.7,192.61,1.5513]
[1735506559915,11.8651259,192.71,192.61,21.5513]
[1735506562817,11.8651259,192.71,192.61,1.5513]
[1735506563118,23.776884,192.73,192.61,21.5513]
[1735506563296,11.8651259,192.7,192.61,21.5513]
[1735506563699,11.8651259,192.7,192.61,1.5513]
[1735506566317,11.8651259,192.7,192.59,20.0]
[1735506567614,11.8651259,192.7,192.6,20.0]
[1735506571017,23.776884,192.69,192.59,20.0]
[1735506571319,23.776884,192.67,192.59,20.0]
[1735506574495,23.776884,192.67,192.6,20.0]
[1735506575228,23.776884,192.67,192.59,20.0]
[1735506575525,23.776884,192.65,192.59,20.0]
[1735506580826,23.776884,192.65,192.61,20.0]
[1735506582631,6.70247802,192.67,192.6,10.37489115]
[1735506582824,6.70247802,192.67,192.61,1.567]
[1735506583430,23.776884,192.66,192.61,1.567]
[1735506585537,23.776884,192.66,192.61,21.567]
[1735506591529,23.776884,192.66,192.61,1.567]
[1735506594448,23.776884,192.66,192.61,21.567]
[1735506598273,23.776884,192.66,192.61,1.567]
[1735506599724,23.776884,192.66,192.6,20.0]
[1735506599929,23.776884,192.66,192.56,18.15619115]
[1735506600229,23.776884,192.66,192.59,20.0]
[1735506600966,23.776884,192.66,192.6,20.0]
[1735506607356,23.776884,192.64,192.57,8.21567937]
[1735506607555,23.776884,192.62,192.57,8.21567937]
[1735506607861,23.776884,192.6,192.54,8.21567937]
[1735506608150,13.71745265,192.6,192.54,8.21567937]
[1735506608735,13.13217463,192.6,192.54,8.21567937]
[1735506608935,23.776884,192.58,192.5,9.84367937]
[1735506610034,23.776884,192.58,192.51,20.0]
[1735506610667,23.776884,192.58,192.5,21.628]
[1735506610836,23.776884,192.58,192.51,20.0]
[1735506613063,23.776884,192.58,192.5,1.628]
[1735506613733,37.49433665,192.58,192.5,21.628]
[1735506614958,37.49433665,192.58,192.5,1.628]
[1735506615565,37.49433665,192.58,192.52,20.0]
[1735506615753,8.57527463,192.63,192.52,20.0]
[1735506616061,23.776884,192.61,192.52,20.0]
[1735506616262,23.776884,192.61,192.5,1.628]
[1735506616438,30.47936202,192.61,192.5,1.628]
[1735506618253,37.49433665,192.61,192.5,1.628]
[1735506619366,30.79185863,192.61,192.51,20.0]
[1735506619578,23.776884,192.59,192.51,20.0]
[1735506621780,23.776884,192.59,192.5,21.628]
[1735506621960,7.01497463,192.61,192.5,21.628]
[1735506622165,23.776884,192.59,192.5,21.628]
[1735506622479,23.776884,192.57,192.5,1.628]
[1735506627571,23.776884,192.57,192.5,21.628]
[1735506628381,23.776884,192.57,192.5,1.628]
[1735506628558,23.776884,192.57,192.49,20.0]
[1735506628755,30.79185863,192.57,192.49,20.0]
[1735506629569,36.50647574,192.57,192.49,20.0]
[1735506629879,23.776884,192.55,192.46,6.099]
[1735506630086,23.776884,192.55,192.49,20.0]
[1735506630312,23.776884,192.53,192.44,20.818376]
[1735506630652,23.776884,192.51,192.47,20.0]
[1735506631169,23.776884,192.49,192.4,1.5811]
[1735506631352,23.776884,192.47,192.35,18.59057052]
[1735506631563,23.776884,192.47,192.39,20.0]
[1735506631764,23.776884,192.47,192.38,20.0]
[1735506631765,23.776884,192.47,192.4,20.0]
[1735506632976,23.776884,192.47,192.41,20.0]
[1735506633572,23.776884,192.47,192.43,20.0]
[1735506634084,23.776884,192.47,192.42,20.0]
[1735506634677,23.776884,192.47,192.44,20.0]
[1735506634876,5.71461711,192.52,192.44,20.0]
[1735506635364,5.71461711,192.52,192.46,20.0]
[1735506635566,5.71461711,192.52,192.48,20.0]
[1735506635787,7.01497463,192.53,192.48,20.0]
[1735506635976,23.776884,192.52,192.48,20.0]
[1735506636765,23.776884,192.56,192.48,20.0]
[1735506637373,23.776884,192.56,192.47,20.0]
[1735506637582,30.47936202,192.56,192.47,20.0]
[1735506637781,8.26751964,192.56,192.48,1.5811]
[1735506638091,13.07497802,192.61,192.51,20.0]
[1735506638287,23.776884,192.6,192.51,20.0]
[1735506638477,30.47936202,192.6,192.51,20.0]
[1735506643501,23.776884,192.58,192.48,1.5811]
[1735506643704,4.7809781,192.57,192.48,1.5811]
[1735506643868,23.776884,192.56,192.48,1.5811]
[1735506644065,28.42121104,192.56,192.48,1.5811]
[1735506644279,23.776884,192.54,192.48,1.5811]
[1735506644481,4.64432704,192.56,192.48,1.5811]
[1735506644680,23.776884,192.54,192.48,1.5811]
[1735506646204,23.776884,192.54,192.48,21.5811]
[1735506647818,23.776884,192.54,192.48,1.5811]
[1735506648905,23.776884,192.54,192.48,21.5811]
[1735506649398,6.70247802,192.55,192.48,21.5811]
[1735506649611,6.70247802,192.55,192.48,1.5811]
[1735506650104,23.776884,192.54,192.48,1.5811]
[1735506652007,23.776884,192.54,192.48,21.5811]
[1735506653483,23.776884,192.6,192.48,1.5811]
[1735506653784,23.776884,192.58,192.48,1.5811]
[1735506658895,23.776884,192.58,192.5,20.0]
[1735506664908,23.776884,192.58,192.48,1.5811]
[1735506665715,23.776884,192.6,192.48,1.5811]
[1735506665924,23.776884,192.58,192.48,1.5811]
[1735506668118,5.95836351,192.59,192.48,1.5811]
[1735506668300,6.3725,192.61,192.52,20.0]
[1735506668503,23.776884,192.6,192.52,20.0]
[1735506668817,30.47936202,192.6,192.48,1.5811]
[1735506670619,30.47936202,192.6,192.48,11.95599115]
[1735506671126,30.47936202,192.6,192.48,1.5811]
[1735506672009,30.47936202,192.6,192.48,11.95599115]
[1735506680505,30.47936202,192.6,192.51,20.0]
[1735506680711,30.47936202,192.6,192.52,20.0]
[1735506681505,30.47936202,192.6,192.48,1.5811]
[1735506682807,30.47936202,192.6,192.51,20.0]
[1735506687324,6.70247802,192.6,192.53,20.0]
[1735506687510,6.3847,192.66,192.57,20.0]
[1735506687716,6.3847,192.66,192.58,20.0]
[1735506687908,6.70247802,192.67,192.58,20.0]
[1735506689415,6.70247802,192.67,192.6,20.0]
[1735506689934,23.776884,192.66,192.6,20.0]
[1735506692036,23.776884,192.66,192.56,10.37489115]
[1735506692539,23.776884,192.66,192.59,20.0]
[1735506693224,23.776884,192.66,192.58,20.0]
[1735506693734,6.70247802,192.66,192.58,20.0]
[1735506693938,6.70247802,192.66,192.55,1.5895]
[1735506693939,6.70247802,192.66,192.56,20.0]
[1735506695515,6.70247802,192.66,192.55,1.5895]
[1735506695516,10.16941965,192.66,192.55,1.5895]
[1735506695838,30.161484,192.64,192.5,16.33937937]
[1735506696046,34.9424621,192.64,192.5,16.33937937]
[1735506696337,34.9424621,192.64,192.53,20.0]
[1735506696338,23.776884,192.62,192.53,20.0]
[1735506696913,23.776884,192.6,192.53,20.0]
[1735506699042,3.46694163,192.59,192.46,1.5274]
[1735506699248,23.776884,192.58,192.46,1.5274]
[1735506699450,27.24382563,192.58,192.48,20.0]
[1735506699622,29.73524751,192.58,192.49,20.0]
[1735506700530,30.161484,192.6,192.46,1.5274]
[1735506700734,23.776884,192.56,192.46,1.5274]
[1735506700935,23.776884,192.59,192.46,1.5274]
[1735506701147,5.95836351,192.56,192.46,1.5274]
[1735506703147,23.776884,192.54,192.46,1.5274]
[1735506703451,30.47936202,192.54,192.46,1.5274]
[1735506703627,30.47936202,192.54,192.44,23.57039909]
[1735506703827,23.776884,192.59,192.44,23.57039909]
[1735506704028,23.776884,192.52,192.43,20.0]
[1735506704435,30.47936202,192.52,192.43,20.0]
[1735506704639,23.776884,192.52,192.41,1.5274]
[1735506704959,23.776884,192.5,192.41,1.5274]
[1735506705449,23.776884,192.52,192.44,20.0]
[1735506705753,23.776884,192.48,192.41,5.09883031]
[1735506705924,23.776884,192.48,192.41,1.5274]
[1735506707060,23.776884,192.48,192.39,20.0]
[1735506707662,23.776884,192.5,192.39,20.0]
[1735506707968,23.776884,192.48,192.39,20.0]
[1735506708146,5.95836351,192.5,192.39,20.0]
[1735506708335,23.776884,192.48,192.39,20.0]
[1735506708737,30.47936202,192.48,192.39,20.0]
[1735506710233,6.70247802,192.47,192.36,1.5437]
[1735506710438,23.776884,192.46,192.36,1.5437]
[1735506710734,23.776884,192.46,192.38,20.0]
[1735506712557,23.776884,192.46,192.39,20.0]
[1735506712758,23.776884,192.46,192.4,20.0]
[1735506713946,23.776884,192.46,192.38,20.0]
[1735506717234,5.95836351,192.48,192.38,20.0]
[1735506717443,23.776884,192.46,192.38,20.0]
[1735506717844,6.70247802,192.46,192.38,20.0]
[1735506718059,5.95836351,192.46,192.38,20.0]
[1735506718457,23.776884,192.44,192.38,20.0]
[1735506724548,23.776884,192.44,192.39,20.0]
[1735506725955,23.776884,192.44,192.38,20.0]
[1735506732239,5.05593577,192.52,192.39,10.37489115]
[1735506732442,6.70247802,192.51,192.39,10.37489115]
[1735506732851,23.776884,192.5,192.4,10.37489115]
[1735506733468,23.776884,192.5,192.39,10.37489115]
[1735506733654,6.70247802,192.51,192.4,10.37489115]
[1735506734468,23.776884,192.5,192.4,10.37489115]
[1735506734770,23.776884,192.5,192.43,20.0]
[1735506735866,12.66084153,192.5,192.4,20.0]
[1735506736771,12.66084153,192.5,192.38,30.37489115]
[1735506736964,12.66084153,192.5,192.39,10.37489115]
[1735506737177,12.66084153,192.5,192.42,20.0]
[1735506737768,12.66084153,192.5,192.4,10.37489115]
[1735506738944,12.66084153,192.5,192.43,20.0]
[1735506740073,12.66084153,192.5,192.38,30.37489115]
[1735506740574,12.66084153,192.5,192.38,20.0]
[1735506740876,12.66084153,192.5,192.39,3.56709986]
[1735506742077,12.66084153,192.5,192.44,20.0]
[1735506742378,6.70247802,192.5,192.45,20.0]
[1735506742558,23.776884,192.53,192.45,20.0]
[1735506743546,5.95836351,192.53,192.45,20.0]
[1735506743749,5.3740335,192.52,192.45,20.0]
[1735506747058,5.3740335,192.52,192.46,20.0]
[1735506750075,5.3740335,192.52,192.45,20.0]
[1735506750473,5.3740335,192.52,192.46,3.57645946]
[1735506751076,5.3740335,192.52,192.45,20.0]
[1735506752366,5.3740335,192.52,192.46,23.57485996]
[1735506753081,5.3740335,192.52,192.45,20.0]
[1735506754182,5.3740335,192.52,192.46,3.57388781]
[1735506754681,5.3740335,192.52,192.45,20.0]
[1735506754879,23.776884,192.51,192.45,20.0]
[1735506755265,23.776884,192.51,192.39,26.70487731]
[1735506755463,6.70247802,192.51,192.39,16.32998616]
[1735506755784,6.70247802,192.51,192.4,1.5998]
[1735506756073,6.70247802,192.51,192.43,20.0]
[1735506756792,6.70247802,192.51,192.41,20.0]
[1735506757170,6.70247802,192.51,192.43,20.0]
[1735506757768,6.70247802,192.51,192.41,20.0]
[1735506758071,12.66084153,192.51,192.41,20.0]
[1735506759159,5.95836351,192.51,192.41,20.0]
[1735506759360,23.776884,192.49,192.41,20.0]
[1735506760678,23.776884,192.49,192.42,20.0]
[1735506764085,29.952284,192.5,192.4,1.5998]
[1735506764287,23.776884,192.47,192.4,1.5998]
[1735506764467,23.776884,192.47,192.4,21.5998]
[1735506764669,29.1509175,192.47,192.4,21.5998]
[1735506766394,23.776884,192.47,192.37,6.4978]
[1735506766572,23.776884,192.45,192.4,20.0]
[1735506766777,23.776884,192.49,192.4,20.0]
[1735506767084,29.1509175,192.45,192.36,21.6617]
[1735506767681,23.776884,192.49,192.36,21.6617]
[1735506767887,23.776884,192.49,192.33,8.21567937]
[1735506767888,6.70247802,192.44,192.37,3.58555398]
[1735506768188,12.73017487,192.44,192.37,3.58555398]
[1735506768692,12.73017487,192.44,192.36,20.0]
[1735506768892,12.73017487,192.44,192.35,20.0]
[1735506769394,6.70247802,192.44,192.35,20.0]
[1735506769591,23.776884,192.42,192.35,20.0]
[1735506770303,1.5603,192.44,192.31,21.6617]
[1735506770608,23.776884,192.41,192.31,1.6617]
[1735506770892,30.47936202,192.41,192.31,21.6617]
[1735506771081,30.47936202,192.41,192.32,3.58664009]
[1735506771266,23.776884,192.42,192.32,3.58664009]
[1735506771473,23.776884,192.39,192.32,3.58664009]
[1735506771672,23.776884,192.39,192.29,20.0]
[1735506771999,29.1509175,192.39,192.29,20.0]
[1735506772492,29.1509175,192.39,192.3,3.58553468]
[1735506772677,29.1509175,192.39,192.3,23.58553468]
[1735506772896,29.1509175,192.39,192.3,3.58553468]
[1735506773077,23.776884,192.37,192.27,1.6617]
[1735506773288,23.776884,192.37,192.28,20.0]
[1735506773488,23.776884,192.37,192.3,20.0]
[1735506773795,29.1509175,192.37,192.3,20.0]
[1735506773996,29.1509175,192.37,192.27,21.6617]
[1735506774185,23.776884,192.42,192.27,21.6617]
[1735506774511,23.776884,192.35,192.27,21.6617]
[1735506775491,23.776884,192.35,192.27,20.0]
[1735506775686,30.47936202,192.35,192.27,20.0]
[1735506775870,30.47936202,192.35,192.24,6.5172]
[1735506775871,23.776884,192.35,192.24,6.5172]
[1735506776078,23.776884,192.33,192.23,1.6617]
[1735506776279,23.776884,192.33,192.25,3.58124123]
[1735506776490,23.776884,192.31,192.25,3.58124123]
[1735506776794,29.80458085,192.31,192.25,3.58124123]
[1735506777092,23.776884,192.29,192.23,20.0]
[1735506777397,6.70247802,192.29,192.23,20.0]
[1735506777801,6.70247802,192.37,192.24,10.37489115]
[1735506778171,23.776884,192.36,192.23,10.37489115]
[1735506778372,6.70247802,192.35,192.26,20.0]
[1735506778578,23.776884,192.34,192.26,20.0]
[1735506778779,6.01043443,192.36,192.26,20.0]
[1735506778998,6.70247802,192.34,192.28,20.0]
[1735506779282,6.01043443,192.36,192.3,20.0]
[1735506779493,6.70247802,192.39,192.3,20.0]
[1735506779693,6.70247802,192.39,192.31,10.37489115]
[1735506780012,6.01043443,192.42,192.31,10.37489115]
[1735506780487,23.776884,192.4,192.31,10.37489115]
[1735506780886,6.70247802,192.41,192.35,20.0]
[1735506781704,23.776884,192.4,192.31,10.37489115]
[1735506782195,23.776884,192.4,192.3,20.0]
[1735506782401,23.776884,192.38,192.3,20.0]
[1735506782913,30.47936202,192.38,192.3,20.0]
[1735506783292,23.776884,192.36,192.3,20.0]
[1735506783494,23.776884,192.36,192.28,1.6617]
[1735506783495,29.80458085,192.36,192.24,1.6251]
[1735506783705,23.776884,192.34,192.24,1.6251]